Workbook

Sheet Balanza Octubre 2025
A2: BALANZA DE COMPROBACION
A3: Del ejercicio terminado de Octubre 2025
A4: (Valores en RD$)
B7: CUENTA | C7: CONCEPTO | D7: SALDO INICIAL | E7: DEBITO | F7: CREDITO | G7: BALANCE
B8: 1101020702 | C8: FONDO OPERATIVO # 110207192-4 | D8: 1,972,823.31 | E8: 1,968,861.52 | F8: 3,740,653.10 | G8: =D8+E8-F8 -> 201,031.73
B9: 1101020704 | C9: MANTENIMIENTO DE CLINICA #110207193-2 | G9: =D9+E9-F9 -> 0
B10: 1101020701 | C10: VENTAS DE SERVICIOS (FONDOS SENASA) #110205793-0 | D10: 26,104,409.69 | E10: 9,351,455.60 | F10: 11,975,855.92 | G10: =D10+E10-F10 -> 23,480,009.37 | H10: =SUM(G8:G10) -> 23,681,041.10
B11: 110601 | C11: Existencia de Bienes de Cambios y Consumo | E11: 7,693,551.18 | G11: =D11+E11-F11 -> 7,693,551.18
B12: 110602 | C12: Existencias de Productos Terminados y en Proceso | G12: =D12+E12-F12 -> 0
B13: 1206010003 | C13: Equipo de Transporte y Otros | D13: 1,672,241.70 | G13: =D13+E13-F13 -> 1,672,241.70
B14: 1206010005 | C14: Equipos Médicos, Sanitarios y Muebles Oficinas | D14: 15,174,906.34 | G14: =D14+E14-F14 -> 15,174,906.34 | H14: =SUM(G13:G14) -> 16,847,148.04
B15: 2103010004 | C15: Contribuciones a la Seguridad Social a Pagar | D15: 339,686.30 | E15: 339,686.30 | F15: 0 | G15: =-(F15+D15-E15) -> 0
B16: 2103060002 | C16: Deducciones Personales a Pagar | D16: 133,014.08 | E16: 266,737.58 | F16: 133,723.50 | G16: =-(F16+D16-E16) -> 0.00
B17: 2103020002 | C17: Proveedores Directos Externos a Pagar a Corto Plazo | D17: 6,729,799.90 | E17: 7,015,671.51 | F17: 4,820,895.89 | G17: =-(F17+D17-E17) -> (4,535,024.28)
B18: 2298010003 | C18: Provisión para Pagos de Bonificaciones | D18: 7,885,821.54 | E18: 4,483,790.03 | F18: 763,280.88 | G18: =-(F18+D18-E18) -> (4,165,312.39)
B19: 2198020001 | C19: Regalía Pascual por Pagar | D19: 2,698,304.32 | E19: 0 | F19: 125,594.89 | G19: =-(F19+D19-E19) -> (2,823,899.21)
B20: 2103060001 | C20: Retenciones Impositivas por Pagar | D20: 498,373.29 | E20: 414,907.82 | F20: 321,372.56 | G20: =-(F20+D20-E20) -> (404,838.03)
B21: 3201 | C21: Capital Institucional | D21: (7,049,674.64) | F21: 7,693,551.18 | G21: =-(F21+D21-E21) -> (643,876.54)
B22: 320301 | C22: Resultados de Ejercicios Anteriores | D22: 33,689,056.25 | G22: =-(F22+D22-E22) -> (33,689,056.25)
B23: 4102980003 | C23: Ingresos por Contribuciones | E23: 0 | F23: 1,992,471.52 | G23: =-(F23+D23-E23) -> (1,992,471.52)
B24: 4102980998 | C24: Otros Ingresos | E24: 0 | F24: 9,327,845.60 | G24: =-(F24+D24-E24) -> (9,327,845.60) | H24: =SUM(G23:G24) -> (11,320,317.12)
B25: 51010200020001 | C25: Alimentos y Productos Agroforestales | E25: 49,418.40 | F25: 0 | G25: =E25 -> 49,418.40
B26: 51010200010006 | C26: Alquileres | E26: 1,837,669.19 | F26: 0 | G26: =E26 -> 1,837,669.19
B27: 51010100070002 | C27: Bonificaciones | E27: 1,139,196.77 | F27: 0 | G27: =E27 -> 1,139,196.77
B28: 51010200020004 | C28: Combustibles, Lubricantes, Productos quimicos y Conexos | E28: 533,606.38 | F28: 0 | G28: =E28 -> 533,606.38
B29: 510102000109990001 | C29: Comisiones y Gastos Bancarios | E29: 23,480.28 | F29: 0 | G29: =E29 -> 23,480.28
B30: 51010200010008 | C30: Conservación, Reparaciones menores y Contrucciones Temporales | E30: 500,412.20 | F30: 0 | G30: =E30 -> 500,412.20
B31: 5101010080002 | C31: Contribuciones al Seguro de Pensiones | E31: 154,466.62 | F31: 0 | G31: =E31 -> 154,466.62
B32: 5101010080003 | C32: Contribuciones al Seguro de Riesgo Laboral | E32: 26,107.02 | F32: 0 | G32: =E32 -> 26,107.02
B33: 51010100080001 | C33: Contribuciones al Seguro de Salud | E33: 154,249.05 | F33: 0 | G33: =E33 -> 154,249.05
B34: 5101010004 | C34: Jornales | E34: 8,000.00 | F34: 0 | G34: =E34 -> 8,000.00
B35: 51010200020007 | C35: Productos y Utiles Varios | E35: 2,896,962.69 | F35: 0 | G35: =E35 -> 2,896,962.69 | H35: =SUM(G35+G28+G25) -> 3,479,987.47
B36: 51010100070001 | C36: Regalía Pascual | E36: 125,594.89 | F36: 0 | G36: =E36 -> 125,594.89
B37: 5101010002 | C37: Sueldo Personal Temporero | E37: 557,941.05 | F37: 0 | G37: =E37 -> 557,941.05
B38: 51010100010001 | C38: Sueldos Fijos | E38: 1,146,128.96 | F38: 0 | G38: =E38 -> 1,146,128.96 | H38: =SUM(G38+G37+G36+G33+G32+G31+G27) -> 3,303,684.36
B39: 51010200010004 | C39: Viaticos Dentro y Fuera del País | E39: 207,350.00 | F39: 0 | G39: =E39 -> 207,350.00 | H39: =SUM(G39+G34+G26) -> 2,053,019.19
C40: TOTAL | E40: =SUM(E8:E39) -> 40,895,245.04 | F40: =SUM(F8:F39) -> 40,895,245.04 | G40: =SUM(G8:G39) -> (0.00)
E43: =E40-F40 -> 0 | G43: =SUM(G25:G39) -> 9,360,583.50
